[Event "Late-Titled-Tuesday-Blitz-February-13-2024"]
[Site "Chess.com"]
[Date "2024.02.13"]
[Round "1"]
[White "boguszp"]
[Black "Herman-NY"]
[Result "0-1"]
[WhiteElo "2014"]
[BlackElo "2540"]
[TimeControl "180+1"]
[EndTime "14:07:21 PST"]
[Termination "Herman-NY won by checkmate"]

1. d4 {[%clk 0:02:58.7]} 1... Nf6 {[%clk 0:02:59.3]} 2. Nf3 {[%clk 0:02:58.1]}
2... g6 {[%clk 0:02:59.7]} 3. Bf4 {[%clk 0:02:58.1]} 3... Bg7 {[%clk 0:03:00.1]}
4. e3 {[%clk 0:02:58.5]} 4... d6 {[%clk 0:03:00.5]} 5. h3 {[%clk 0:02:58.9]}
5... O-O {[%clk 0:03:01.1]} 6. Be2 {[%clk 0:02:58.7]} 6... c5 {[%clk 0:02:58.5]}
7. O-O {[%clk 0:02:58.7]} 7... Qb6 {[%clk 0:02:57.7]} 8. Qc1 {[%clk 0:02:56.7]}
8... Nc6 {[%clk 0:02:52.7]} 9. c3 {[%clk 0:02:56.7]} 9... Bf5 {[%clk 0:02:51.6]}
10. Nbd2 {[%clk 0:02:56.8]} 10... Rac8 {[%clk 0:02:49.8]} 11. dxc5 {[%clk
0:02:51]} 11... Qxc5 {[%clk 0:02:49.2]} 12. Nb3 {[%clk 0:02:51.4]} 12... Qb6
{[%clk 0:02:47]} 13. Rd1 {[%clk 0:02:48.6]} 13... Ne4 {[%clk 0:02:46.3]} 14. Bd3
{[%clk 0:02:40.2]} 14... e5 {[%clk 0:02:42.5]} 15. Bh2 {[%clk 0:02:38.3]} 15...
Nxc3 {[%clk 0:02:10.4]} 16. bxc3 {[%clk 0:02:34.1]} 16... e4 {[%clk 0:02:10.5]}
17. Bxd6 {[%clk 0:02:24.4]} 17... Rfe8 {[%clk 0:01:55]} 18. Bc5 {[%clk
0:02:21.4]} 18... Qc7 {[%clk 0:01:53.7]} 19. Bxe4 {[%clk 0:02:16.2]} 19... Bxe4
{[%clk 0:01:52.6]} 20. Nfd4 {[%clk 0:02:11.8]} 20... Ne5 {[%clk 0:01:48.6]} 21.
Nb5 {[%clk 0:02:09]} 21... Qc6 {[%clk 0:01:31.3]} 22. Nd6 {[%clk 0:02:08.3]}
22... Bxg2 {[%clk 0:01:27.4]} 23. e4 {[%clk 0:01:27.6]} 23... Bxh3 {[%clk
0:01:16.2]} 24. Qe3 {[%clk 0:01:19.8]} 24... Bg4 {[%clk 0:01:08.4]} 25. Nxe8
{[%clk 0:01:02.6]} 25... Rxe8 {[%clk 0:00:56.5]} 26. Rd6 {[%clk 0:01:00.4]}
26... Qc8 {[%clk 0:00:52.4]} 27. Qf4 {[%clk 0:00:47.9]} 27... Nf3+ {[%clk
0:00:50.7]} 28. Kg2 {[%clk 0:00:46.4]} 28... Be5 {[%clk 0:00:48.1]} 29. Qh6
{[%clk 0:00:34]} 29... Bh5 {[%clk 0:00:23.2]} 30. Rd5 {[%clk 0:00:28.4]} 30...
Qg4+ {[%clk 0:00:20.6]} 31. Kf1 {[%clk 0:00:27.1]} 31... Qxe4 {[%clk 0:00:16]}
32. Rxe5 {[%clk 0:00:22.2]} 32... Qxe5 {[%clk 0:00:12.5]} 33. Bd4 {[%clk
0:00:18.5]} 33... Nxd4 {[%clk 0:00:10.2]} 34. Nxd4 {[%clk 0:00:17.7]} 34... Qe4
{[%clk 0:00:08.4]} 35. f3 {[%clk 0:00:11.6]} 35... Bxf3 {[%clk 0:00:07.1]} 36.
Nxf3 {[%clk 0:00:11.1]} 36... Qxf3+ {[%clk 0:00:08]} 37. Kg1 {[%clk 0:00:11.3]}
37... Re2 {[%clk 0:00:08.1]} 38. Qg5 {[%clk 0:00:07.3]} 38... Qf2+ {[%clk
0:00:08.5]} 39. Kh1 {[%clk 0:00:06.5]} 39... Qh2# {[%clk 0:00:09.4]} 0-1

[Event "Late-Titled-Tuesday-Blitz-February-13-2024"]
[Site "Chess.com"]
[Date "2024.02.13"]
[Round "1"]
[White "claudyna16"]
[Black "Karacsonyi_Gellert"]
[Result "0-1"]
[WhiteElo "2432"]
[BlackElo "2821"]
[TimeControl "180+1"]
[EndTime "14:07:22 PST"]
[Termination "Karacsonyi_Gellert won by checkmate"]

1. c4 {[%clk 0:03:00.9]} 1... Nf6 {[%clk 0:02:59.4]} 2. g3 {[%clk 0:03:00.7]}
2... e6 {[%clk 0:02:58.9]} 3. Bg2 {[%clk 0:02:59.6]} 3... d5 {[%clk 0:02:59.8]}
4. Nf3 {[%clk 0:02:59.7]} 4... Be7 {[%clk 0:02:58.8]} 5. O-O {[%clk 0:02:55.3]}
5... O-O {[%clk 0:02:59.4]} 6. d4 {[%clk 0:02:49.4]} 6... dxc4 {[%clk
0:02:59.4]} 7. Qc2 {[%clk 0:02:45.1]} 7... a6 {[%clk 0:02:59.3]} 8. Qxc4 {[%clk
0:02:44.6]} 8... b5 {[%clk 0:02:59.2]} 9. Qc2 {[%clk 0:02:44]} 9... Bb7 {[%clk
0:02:59.9]} 10. Bd2 {[%clk 0:02:42.5]} 10... Be4 {[%clk 0:03:00.6]} 11. Qc1
{[%clk 0:02:42.1]} 11... c6 {[%clk 0:03:01.3]} 12. Nc3 {[%clk 0:02:29]} 12...
Bxf3 {[%clk 0:02:58.6]} 13. Bxf3 {[%clk 0:02:28.7]} 13... Qxd4 {[%clk
0:02:58.7]} 14. Rd1 {[%clk 0:02:28.2]} 14... Qa7 {[%clk 0:02:40.8]} 15. a4
{[%clk 0:01:50.3]} 15... b4 {[%clk 0:02:32.6]} 16. Nb1 {[%clk 0:01:49.5]} 16...
Bc5 {[%clk 0:02:28.7]} 17. Be1 {[%clk 0:01:44.3]} 17... Rc8 {[%clk 0:02:12.3]}
18. Nd2 {[%clk 0:01:41.3]} 18... Nbd7 {[%clk 0:02:09.5]} 19. a5 {[%clk
0:01:41.3]} 19... Ne5 {[%clk 0:02:08.2]} 20. Bg2 {[%clk 0:01:29.9]} 20... Neg4
{[%clk 0:02:03.6]} 21. e3 {[%clk 0:01:29.2]} 21... Rd8 {[%clk 0:01:41.9]} 22.
Nb3 {[%clk 0:01:26.7]} 22... Rxd1 {[%clk 0:01:37.4]} 23. Qxd1 {[%clk 0:01:25.3]}
23... Bxe3 {[%clk 0:01:38.1]} 24. fxe3 {[%clk 0:01:19.8]} 24... Qxe3+ {[%clk
0:01:39]} 25. Kh1 {[%clk 0:01:18.3]} 25... h5 {[%clk 0:01:19]} 26. Qf3 {[%clk
0:01:08.9]} 26... Qe5 {[%clk 0:01:17.5]} 27. Bxb4 {[%clk 0:00:56.2]} 27... Qxb2
{[%clk 0:01:13.4]} 28. Ba3 {[%clk 0:00:51.8]} 28... Qc2 {[%clk 0:01:05.8]} 29.
Rc1 {[%clk 0:00:50.2]} 29... Qa2 {[%clk 0:01:03.9]} 30. Bc5 {[%clk 0:00:48.6]}
30... Rd8 {[%clk 0:00:56.8]} 31. h3 {[%clk 0:00:45.4]} 31... Ne5 {[%clk
0:00:53.1]} 32. Qe3 {[%clk 0:00:30.2]} 32... Nd3 {[%clk 0:00:50.9]} 33. Rc3
{[%clk 0:00:22.2]} 33... Nxc5 {[%clk 0:00:39.5]} 34. Nxc5 {[%clk 0:00:23.1]}
34... Rd2 {[%clk 0:00:34.6]} 35. Qf3 {[%clk 0:00:18.3]} 35... Rxg2 {[%clk
0:00:29.9]} 36. Qxg2 {[%clk 0:00:18.6]} 36... Qa1+ {[%clk 0:00:30.5]} 37. Kh2
{[%clk 0:00:18.6]} 37... Qxc3 {[%clk 0:00:31.2]} 38. Qxc6 {[%clk 0:00:18.8]}
38... Qd2+ {[%clk 0:00:21.4]} 39. Kg1 {[%clk 0:00:18.7]} 39... Qe1+ {[%clk
0:00:18.9]} 40. Kg2 {[%clk 0:00:18.7]} 40... Nd5 {[%clk 0:00:15.7]} 41. Qe8+
{[%clk 0:00:15.1]} 41... Kh7 {[%clk 0:00:16.2]} 42. Qxf7 {[%clk 0:00:12.7]}
42... Ne3+ {[%clk 0:00:16.8]} 43. Kh2 {[%clk 0:00:12.2]} 43... Qe2+ {[%clk
0:00:16.7]} 44. Kg1 {[%clk 0:00:12.5]} 44... Qg2# {[%clk 0:00:17]} 0-1

[Event "Late-Titled-Tuesday-Blitz-February-13-2024"]
[Site "Chess.com"]
[Date "2024.02.13"]
[Round "1"]
[White "picturesquecheck"]
[Black "FontVella8"]
[Result "1-0"]
[WhiteElo "2403"]
[BlackElo "2708"]
[TimeControl "180+1"]
[EndTime "14:07:22 PST"]
[Termination "picturesquecheck won on time"]

1. e4 {[%clk 0:02:58.5]} 1... c6 {[%clk 0:02:59.8]} 2. d4 {[%clk 0:02:57.3]}
2... d5 {[%clk 0:03:00.7]} 3. exd5 {[%clk 0:02:57.9]} 3... cxd5 {[%clk 0:03:01]}
4. Bd3 {[%clk 0:02:58.6]} 4... Nf6 {[%clk 0:03:01.4]} 5. c3 {[%clk 0:02:58.4]}
5... Nc6 {[%clk 0:03:02]} 6. h3 {[%clk 0:02:58.9]} 6... g6 {[%clk 0:03:02.2]} 7.
Nf3 {[%clk 0:02:59]} 7... Bf5 {[%clk 0:03:02.6]} 8. Be2 {[%clk 0:02:58.6]} 8...
e6 {[%clk 0:03:02.5]} 9. O-O {[%clk 0:02:59.5]} 9... Qc7 {[%clk 0:03:00.7]} 10.
Re1 {[%clk 0:02:59.3]} 10... Bd6 {[%clk 0:03:00.5]} 11. Na3 {[%clk 0:02:59.7]}
11... a6 {[%clk 0:03:00.3]} 12. Nc2 {[%clk 0:03:00]} 12... h5 {[%clk 0:02:59.6]}
13. Ne3 {[%clk 0:02:55]} 13... O-O-O {[%clk 0:02:58]} 14. a4 {[%clk 0:02:53]}
14... Bf4 {[%clk 0:02:53.4]} 15. b4 {[%clk 0:02:48.9]} 15... Ne4 {[%clk
0:02:50.9]} 16. Qb3 {[%clk 0:02:43.1]} 16... g5 {[%clk 0:02:44]} 17. Nxf5 {[%clk
0:01:58.3]} 17... exf5 {[%clk 0:02:39.2]} 18. Bxf4 {[%clk 0:01:57.6]} 18... Qxf4
{[%clk 0:02:37.3]} 19. b5 {[%clk 0:01:54.8]} 19... Na5 {[%clk 0:02:09.3]} 20.
Qb4 {[%clk 0:01:54]} 20... b6 {[%clk 0:01:42.8]} 21. Bd3 {[%clk 0:01:52.7]}
21... g4 {[%clk 0:01:40.8]} 22. Bxe4 {[%clk 0:01:51]} 22... fxe4 {[%clk
0:01:34.9]} 23. Ne5 {[%clk 0:01:49.8]} 23... gxh3 {[%clk 0:01:31.1]} 24. Re3
{[%clk 0:01:37.7]} 24... h2+ {[%clk 0:01:00.7]} 25. Kh1 {[%clk 0:01:26.3]} 25...
Qxf2 {[%clk 0:01:00.6]} 26. Rae1 {[%clk 0:00:38.3]} 26... Rhg8 {[%clk
0:00:25.9]} 27. R3e2 {[%clk 0:00:37.7]} 27... Qf6 {[%clk 0:00:26.1]} 28. bxa6
{[%clk 0:00:37]} 28... Kb8 {[%clk 0:00:22]} 29. c4 {[%clk 0:00:26.6]} 29... Ka7
{[%clk 0:00:19.7]} 30. c5 {[%clk 0:00:24.7]} 30... Rb8 {[%clk 0:00:06.3]} 31.
Rb1 {[%clk 0:00:15.2]} 31... Kxa6 {[%clk 0:00:02.5]} 32. Qb5+ {[%clk 0:00:14.9]}
32... Ka7 {[%clk 0:00:03]} 33. Reb2 {[%clk 0:00:06.4]} 33... Nc4 {[%clk
0:00:02.2]} 34. Nc6+ {[%clk 0:00:05.7]} 34... Kb7 {[%clk 0:00:01.3]} 35. Nxb8
{[%clk 0:00:06.1]} 1-0

[Event "Late-Titled-Tuesday-Blitz-February-13-2024"]
[Site "Chess.com"]
[Date "2024.02.13"]
[Round "1"]
[White "Antipov_Mikhail_Al"]
[Black "Mikayel99"]
[Result "1-0"]
[WhiteElo "2961"]
[BlackElo "2501"]
[TimeControl "180+1"]
[EndTime "14:07:23 PST"]
[Termination "Antipov_Mikhail_Al won by resignation"]

1. e4 {[%clk 0:03:00.9]} 1... c5 {[%clk 0:02:58.3]} 2. Nf3 {[%clk 0:02:58.7]}
2... d6 {[%clk 0:02:58.6]} 3. Bb5+ {[%clk 0:02:57.9]} 3... Bd7 {[%clk
0:02:59.1]} 4. c4 {[%clk 0:02:57.5]} 4... e5 {[%clk 0:02:58.8]} 5. Nc3 {[%clk
0:02:51.2]} 5... Nc6 {[%clk 0:02:57.5]} 6. d3 {[%clk 0:02:49.8]} 6... Nge7
{[%clk 0:02:56.9]} 7. O-O {[%clk 0:02:41.3]} 7... Ng6 {[%clk 0:02:56.6]} 8. Nd5
{[%clk 0:02:37.5]} 8... Be7 {[%clk 0:02:55.6]} 9. b4 {[%clk 0:02:27]} 9... Nxb4
{[%clk 0:02:47.4]} 10. Bxd7+ {[%clk 0:02:23.1]} 10... Qxd7 {[%clk 0:02:46.5]}
11. Nxb4 {[%clk 0:02:23.7]} 11... cxb4 {[%clk 0:02:47.4]} 12. Rb1 {[%clk
0:02:18.6]} 12... a5 {[%clk 0:02:42.5]} 13. a3 {[%clk 0:02:18]} 13... b5 {[%clk
0:02:40.2]} 14. axb4 {[%clk 0:01:37.2]} 14... bxc4 {[%clk 0:02:36.4]} 15. b5
{[%clk 0:01:19.3]} 15... cxd3 {[%clk 0:02:36.5]} 16. Qxd3 {[%clk 0:01:20.2]}
16... O-O {[%clk 0:02:36.6]} 17. Rd1 {[%clk 0:01:15]} 17... Rfb8 {[%clk
0:02:36.1]} 18. Be3 {[%clk 0:00:49.9]} 18... a4 {[%clk 0:02:25.1]} 19. b6 {[%clk
0:00:45.6]} 19... Rb7 {[%clk 0:02:14.2]} 20. g3 {[%clk 0:00:37.1]} 20... a3
{[%clk 0:01:58.5]} 21. Ra1 {[%clk 0:00:31.5]} 21... a2 {[%clk 0:01:54]} 22. Rd2
{[%clk 0:00:30.6]} 22... Qe6 {[%clk 0:01:50.3]} 23. Kg2 {[%clk 0:00:22]} 23...
Nf8 {[%clk 0:01:38]} 24. Qb5 {[%clk 0:00:08.5]} 24... Nd7 {[%clk 0:01:29.6]} 25.
Qc6 {[%clk 0:00:08]} 25... Rab8 {[%clk 0:01:21.1]} 26. Rdxa2 {[%clk 0:00:06.3]}
26... Nxb6 {[%clk 0:00:53.2]} 27. Rb2 {[%clk 0:00:06.5]} 27... Bd8 {[%clk
0:00:10.6]} 28. Bxb6 {[%clk 0:00:02.9]} 28... Rxb6 {[%clk 0:00:03.1]} 29. Rxb6
{[%clk 0:00:03.8]} 29... Bxb6 {[%clk 0:00:03.4]} 30. Qxb6 {[%clk 0:00:03.5]}
30... Re8 {[%clk 0:00:03.5]} 31. Ra7 {[%clk 0:00:03.5]} 31... f5 {[%clk
0:00:03.7]} 32. Qb7 {[%clk 0:00:03.8]} 32... Qg6 {[%clk 0:00:03.8]} 33. Nh4
{[%clk 0:00:03.8]} 33... Qf6 {[%clk 0:00:03.9]} 34. Nxf5 {[%clk 0:00:04.4]}
34... h6 {[%clk 0:00:03.4]} 35. Nxg7 {[%clk 0:00:04.1]} 35... Rf8 {[%clk
0:00:03.7]} 36. Nf5 {[%clk 0:00:04.6]} 36... Qg6 {[%clk 0:00:02.7]} 37. Ne7+
{[%clk 0:00:04.3]} 1-0

[Event "Late-Titled-Tuesday-Blitz-February-13-2024"]
[Site "Chess.com"]
[Date "2024.02.13"]
[Round "1"]
[White "verrbaa"]
[Black "Elsa167"]
[Result "0-1"]
[WhiteElo "2480"]
[BlackElo "2893"]
[TimeControl "180+1"]
[EndTime "14:07:24 PST"]
[Termination "Elsa167 won on time"]

1. e4 {[%clk 0:02:57.1]} 1... e6 {[%clk 0:02:59.2]} 2. d4 {[%clk 0:02:56.7]}
2... d5 {[%clk 0:02:59.8]} 3. Nc3 {[%clk 0:02:57]} 3... Bb4 {[%clk 0:02:59.5]}
4. e5 {[%clk 0:02:56.7]} 4... c5 {[%clk 0:02:59.3]} 5. a3 {[%clk 0:02:57.2]}
5... Bxc3+ {[%clk 0:03:00]} 6. bxc3 {[%clk 0:02:57.9]} 6... Nc6 {[%clk
0:03:00.8]} 7. h4 {[%clk 0:02:44.4]} 7... Bd7 {[%clk 0:02:59.9]} 8. h5 {[%clk
0:02:43.7]} 8... Qa5 {[%clk 0:02:59.7]} 9. Bd2 {[%clk 0:02:42.3]} 9... O-O-O
{[%clk 0:02:59.9]} 10. a4 {[%clk 0:02:33.6]} 10... f6 {[%clk 0:02:59.8]} 11. Nf3
{[%clk 0:02:02.7]} 11... fxe5 {[%clk 0:02:51.5]} 12. dxe5 {[%clk 0:02:02.5]}
12... Nh6 {[%clk 0:02:43.1]} 13. g3 {[%clk 0:01:38]} 13... Rdf8 {[%clk
0:02:31.8]} 14. Bh3 {[%clk 0:01:33.7]} 14... Nf5 {[%clk 0:01:59.9]} 15. O-O
{[%clk 0:01:33]} 15... h6 {[%clk 0:01:49.8]} 16. c4 {[%clk 0:01:29.1]} 16... Qc7
{[%clk 0:01:49.7]} 17. cxd5 {[%clk 0:01:29]} 17... exd5 {[%clk 0:01:50.6]} 18.
Re1 {[%clk 0:01:26.8]} 18... Be6 {[%clk 0:01:42.7]} 19. Bf4 {[%clk 0:01:24.7]}
19... Qd7 {[%clk 0:01:31.1]} 20. c3 {[%clk 0:01:18.4]} 20... Rhg8 {[%clk
0:01:16.7]} 21. Bxf5 {[%clk 0:00:41]} 21... Rxf5 {[%clk 0:01:12.7]} 22. Nh4
{[%clk 0:00:40.6]} 22... Rf7 {[%clk 0:01:04.1]} 23. Qc2 {[%clk 0:00:36.3]} 23...
d4 {[%clk 0:00:51.4]} 24. Rad1 {[%clk 0:00:35.7]} 24... Qd5 {[%clk 0:00:46.8]}
25. Qe4 {[%clk 0:00:19.4]} 25... Qxe4 {[%clk 0:00:42]} 26. Rxe4 {[%clk
0:00:20.3]} 26... dxc3 {[%clk 0:00:42.6]} 27. Rc1 {[%clk 0:00:20.8]} 27... b6
{[%clk 0:00:25.9]} 28. Rxc3 {[%clk 0:00:20.2]} 28... Rd8 {[%clk 0:00:25.8]} 29.
Rc1 {[%clk 0:00:17.9]} 29... Kb7 {[%clk 0:00:25.6]} 30. Ng6 {[%clk 0:00:13.8]}
30... Rd4 {[%clk 0:00:21.7]} 31. Rxd4 {[%clk 0:00:11.1]} 31... Nxd4 {[%clk
0:00:22.6]} 32. Rd1 {[%clk 0:00:04.7]} 32... Bg4 {[%clk 0:00:20.9]} 33. Rd3
{[%clk 0:00:03.7]} 33... Bxh5 {[%clk 0:00:20.5]} 34. e6 {[%clk 0:00:02.1]} 34...
Nxe6 {[%clk 0:00:16.1]} 35. Ne5 {[%clk 0:00:02.5]} 35... Re7 {[%clk 0:00:10.8]}
36. Be3 {[%clk 0:00:01.7]} 36... Ng5 {[%clk 0:00:08.1]} 0-1

[Event "Late-Titled-Tuesday-Blitz-February-13-2024"]
[Site "Chess.com"]
[Date "2024.02.13"]
[Round "1"]
[White "ErikRonka"]
[Black "DonPreuss"]
[Result "1-0"]
[WhiteElo "2558"]
[BlackElo "2183"]
[TimeControl "180+1"]
[EndTime "14:07:25 PST"]
[Termination "ErikRonka won on time"]

1. e4 {[%clk 0:03:00.9]} 1... Nc6 {[%clk 0:02:57.3]} 2. Nf3 {[%clk 0:03:00.9]}
2... e5 {[%clk 0:02:56.4]} 3. Bb5 {[%clk 0:03:00.6]} 3... Bc5 {[%clk 0:02:56.1]}
4. c3 {[%clk 0:03:00.2]} 4... Bb6 {[%clk 0:02:53.9]} 5. d4 {[%clk 0:02:59.1]}
5... exd4 {[%clk 0:02:52.8]} 6. cxd4 {[%clk 0:03:00]} 6... Nge7 {[%clk 0:02:52]}
7. d5 {[%clk 0:02:59.5]} 7... Nb8 {[%clk 0:02:51.9]} 8. O-O {[%clk 0:02:57.6]}
8... O-O {[%clk 0:02:50.6]} 9. Nc3 {[%clk 0:02:57.2]} 9... d6 {[%clk 0:02:50.3]}
10. h3 {[%clk 0:02:57.5]} 10... Ng6 {[%clk 0:02:47.8]} 11. Bg5 {[%clk
0:02:55.5]} 11... f6 {[%clk 0:02:45.8]} 12. Bd2 {[%clk 0:02:55]} 12... a6 {[%clk
0:02:44.2]} 13. Bc4 {[%clk 0:02:54.3]} 13... f5 {[%clk 0:02:38.5]} 14. Re1
{[%clk 0:02:52.5]} 14... f4 {[%clk 0:02:37]} 15. Rc1 {[%clk 0:02:50.1]} 15...
Nd7 {[%clk 0:02:34.2]} 16. Ne2 {[%clk 0:02:38.3]} 16... Nh4 {[%clk 0:01:34.6]}
17. Ned4 {[%clk 0:02:34.7]} 17... Bxd4 {[%clk 0:01:30]} 18. Nxd4 {[%clk
0:02:35]} 18... Ne5 {[%clk 0:01:29.4]} 19. Bf1 {[%clk 0:02:15.6]} 19... Qg5
{[%clk 0:01:03.2]} 20. Kh1 {[%clk 0:01:52.7]} 20... Qg6 {[%clk 0:00:59.1]} 21.
f3 {[%clk 0:01:39]} 21... Qg3 {[%clk 0:00:47]} 22. Re2 {[%clk 0:01:25.4]} 22...
Rf6 {[%clk 0:00:46.4]} 23. Qe1 {[%clk 0:01:15.7]} 23... Qg5 {[%clk 0:00:46.4]}
24. Rxc7 {[%clk 0:01:09.5]} 24... Rg6 {[%clk 0:00:40.9]} 25. Qf2 {[%clk
0:00:55.5]} 25... Qh6 {[%clk 0:00:32.2]} 26. Ne6 {[%clk 0:00:50.3]} 26... Bxe6
{[%clk 0:00:31.6]} 27. dxe6 {[%clk 0:00:50.1]} 27... Re8 {[%clk 0:00:31.7]} 28.
Be1 {[%clk 0:00:37.6]} 28... Rg3 {[%clk 0:00:24.5]} 29. Qb6 {[%clk 0:00:16.5]}
29... Nhxf3 {[%clk 0:00:20.5]} 30. Bxg3 {[%clk 0:00:15.7]} 30... fxg3 {[%clk
0:00:19.5]} 31. gxf3 {[%clk 0:00:14.7]} 31... Nxf3 {[%clk 0:00:18.1]} 32. Qe3
{[%clk 0:00:12.2]} 32... Qh4 {[%clk 0:00:17.7]} 33. Qxf3 {[%clk 0:00:11.9]}
33... Rf8 {[%clk 0:00:17.8]} 34. Rf7 {[%clk 0:00:11.3]} 34... Re8 {[%clk
0:00:17.6]} 35. e7 {[%clk 0:00:11.7]} 35... h6 {[%clk 0:00:14.6]} 36. Rf8+
{[%clk 0:00:11.8]} 36... Kh7 {[%clk 0:00:14.4]} 37. Qf5+ {[%clk 0:00:11.8]} 1-0

[Event "Late-Titled-Tuesday-Blitz-February-13-2024"]
[Site "Chess.com"]
[Date "2024.02.13"]
[Round "1"]
[White "zverr1"]
[Black "norwaytoadog"]
[Result "1-0"]
[WhiteElo "2568"]
[BlackElo "2207"]
[TimeControl "180+1"]
[EndTime "14:07:26 PST"]
[Termination "zverr1 won on time"]

1. e4 {[%clk 0:03:00.9]} 1... c5 {[%clk 0:02:59.2]} 2. Nf3 {[%clk 0:03:01]} 2...
d6 {[%clk 0:02:59.6]} 3. Nc3 {[%clk 0:03:01.1]} 3... a6 {[%clk 0:02:56.9]} 4. d4
{[%clk 0:02:59.4]} 4... cxd4 {[%clk 0:02:56.8]} 5. Nxd4 {[%clk 0:03:00.3]} 5...
Nf6 {[%clk 0:02:56.9]} 6. h3 {[%clk 0:02:59.7]} 6... e5 {[%clk 0:02:56.1]} 7.
Nde2 {[%clk 0:02:59.9]} 7... h5 {[%clk 0:02:55.3]} 8. g3 {[%clk 0:03:00.2]} 8...
Be6 {[%clk 0:02:54.1]} 9. Bg2 {[%clk 0:02:59.7]} 9... Be7 {[%clk 0:02:53.6]} 10.
a4 {[%clk 0:02:58.9]} 10... Nc6 {[%clk 0:02:42.8]} 11. Be3 {[%clk 0:02:58.2]}
11... Rc8 {[%clk 0:02:39.1]} 12. b3 {[%clk 0:02:57.5]} 12... O-O {[%clk
0:02:27.2]} 13. O-O {[%clk 0:02:57]} 13... h4 {[%clk 0:02:18.8]} 14. f4 {[%clk
0:02:24.3]} 14... exf4 {[%clk 0:02:00.8]} 15. gxf4 {[%clk 0:02:23.9]} 15... Nh7
{[%clk 0:01:56.6]} 16. Nd5 {[%clk 0:01:54]} 16... Bxd5 {[%clk 0:01:16.4]} 17.
exd5 {[%clk 0:01:54.9]} 17... Nb4 {[%clk 0:01:15.3]} 18. c4 {[%clk 0:01:46.7]}
18... Bf6 {[%clk 0:01:04.1]} 19. Bd4 {[%clk 0:01:32.8]} 19... a5 {[%clk
0:00:59.9]} 20. Qd2 {[%clk 0:01:25.8]} 20... Re8 {[%clk 0:00:57.2]} 21. Rae1
{[%clk 0:01:21.9]} 21... Re7 {[%clk 0:00:39.9]} 22. Bxf6 {[%clk 0:00:57.2]}
22... Nxf6 {[%clk 0:00:39.5]} 23. Nd4 {[%clk 0:00:57.4]} 23... Qb6 {[%clk
0:00:33.5]} 24. Rxe7 {[%clk 0:00:55.4]} 24... Nc2 {[%clk 0:00:18.8]} 25. Qxc2
{[%clk 0:00:48.5]} 25... Qxd4+ {[%clk 0:00:18.8]} 26. Kh1 {[%clk 0:00:49]} 26...
b5 {[%clk 0:00:15.2]} 27. axb5 {[%clk 0:00:47.4]} 27... a4 {[%clk 0:00:15.4]}
28. bxa4 {[%clk 0:00:41.6]} 28... Rxc4 {[%clk 0:00:15.2]} 29. Qf2 {[%clk
0:00:38.1]} 29... Qd3 {[%clk 0:00:10.7]} 30. Rfe1 {[%clk 0:00:28.2]} 30... Nh5
{[%clk 0:00:05.4]} 31. Qxh4 {[%clk 0:00:18]} 31... g6 {[%clk 0:00:04.5]} 32.
R7e3 {[%clk 0:00:15.1]} 32... Qd2 {[%clk 0:00:03.2]} 33. R1e2 {[%clk 0:00:11]}
33... Rc1+ {[%clk 0:00:03.4]} 34. Kh2 {[%clk 0:00:09.5]} 34... Qd1 {[%clk
0:00:03.3]} 35. Re1 {[%clk 0:00:09]} 1-0

[Event "Late-Titled-Tuesday-Blitz-February-13-2024"]
[Site "Chess.com"]
[Date "2024.02.13"]
[Round "1"]
[White "SouS007"]
[Black "jcibarra"]
[Result "0-1"]
[WhiteElo "2498"]
[BlackElo "2938"]
[TimeControl "180+1"]
[EndTime "14:07:28 PST"]
[Termination "jcibarra won on time"]

1. e4 {[%clk 0:03:00.9]} 1... c5 {[%clk 0:02:59.6]} 2. Nf3 {[%clk 0:03:00.6]}
2... e6 {[%clk 0:03:00.1]} 3. d4 {[%clk 0:03:00.5]} 3... cxd4 {[%clk 0:03:00.8]}
4. Nxd4 {[%clk 0:03:01.1]} 4... Bc5 {[%clk 0:03:01.3]} 5. Nb3 {[%clk 0:02:55.2]}
5... Bb6 {[%clk 0:03:01.5]} 6. Nc3 {[%clk 0:02:45]} 6... Ne7 {[%clk 0:02:57.5]}
7. Be2 {[%clk 0:02:40.5]} 7... O-O {[%clk 0:02:56.5]} 8. O-O {[%clk 0:02:40.5]}
8... f5 {[%clk 0:02:56.5]} 9. a4 {[%clk 0:02:15.5]} 9... Nbc6 {[%clk 0:02:55.9]}
10. exf5 {[%clk 0:01:54.2]} 10... Nxf5 {[%clk 0:02:55.8]} 11. Bf3 {[%clk
0:01:51.2]} 11... d5 {[%clk 0:02:54.8]} 12. g3 {[%clk 0:01:22.3]} 12... Qf6
{[%clk 0:02:33.3]} 13. Bg2 {[%clk 0:01:21.4]} 13... Qg6 {[%clk 0:02:26]} 14. a5
{[%clk 0:01:20.9]} 14... Bc7 {[%clk 0:02:24.5]} 15. Nb5 {[%clk 0:01:18.7]} 15...
Be5 {[%clk 0:02:21.5]} 16. c3 {[%clk 0:01:13.5]} 16... a6 {[%clk 0:02:20.8]} 17.
N5d4 {[%clk 0:01:13.5]} 17... Ncxd4 {[%clk 0:02:09.7]} 18. Nxd4 {[%clk 0:01:13]}
18... Bd7 {[%clk 0:02:01.3]} 19. Nf3 {[%clk 0:01:11.1]} 19... Bc7 {[%clk
0:01:56.8]} 20. Re1 {[%clk 0:01:11.1]} 20... Bb5 {[%clk 0:01:47.8]} 21. Nd4
{[%clk 0:00:55.6]} 21... Nxd4 {[%clk 0:01:44.4]} 22. Qxd4 {[%clk 0:00:52.8]}
22... Rad8 {[%clk 0:01:41.8]} 23. Be3 {[%clk 0:00:48.4]} 23... e5 {[%clk
0:01:20]} 24. Qc5 {[%clk 0:00:48.2]} 24... Bc6 {[%clk 0:01:15.7]} 25. Rad1
{[%clk 0:00:44.1]} 25... Qf7 {[%clk 0:01:08.2]} 26. Bg5 {[%clk 0:00:38.2]} 26...
Rd7 {[%clk 0:01:01.3]} 27. Bh3 {[%clk 0:00:38.2]} 27... d4 {[%clk 0:00:51.4]}
28. f4 {[%clk 0:00:17.5]} 28... Rd5 {[%clk 0:00:45.6]} 29. Qe7 {[%clk
0:00:17.7]} 29... Re8 {[%clk 0:00:27]} 30. Qxf7+ {[%clk 0:00:14]} 30... Kxf7
{[%clk 0:00:27.9]} 31. cxd4 {[%clk 0:00:10.8]} 31... exd4 {[%clk 0:00:25.1]} 32.
Bg2 {[%clk 0:00:08.9]} 32... Rxa5 {[%clk 0:00:21.4]} 33. Bxc6 {[%clk 0:00:08.8]}
33... bxc6 {[%clk 0:00:19.3]} 34. Rxe8 {[%clk 0:00:05.3]} 34... Kxe8 {[%clk
0:00:20.2]} 35. Kg2 {[%clk 0:00:05.9]} 35... Bb6 {[%clk 0:00:16.7]} 36. Re1+
{[%clk 0:00:06.1]} 36... Kf8 {[%clk 0:00:15.4]} 37. Be7+ {[%clk 0:00:05.1]}
37... Kf7 {[%clk 0:00:15.4]} 38. Bd6 {[%clk 0:00:04.3]} 38... Rd5 {[%clk
0:00:14.7]} 39. Bb4 {[%clk 0:00:02.4]} 39... Rb5 {[%clk 0:00:14.3]} 40. Ba3
{[%clk 0:00:02.3]} 40... Bc5 {[%clk 0:00:12.7]} 0-1